bitfinex-derivatives/quotes_BTCF0:USTF0_20250930
["timestamp","ask_amount","ask_price","bid_price","bid_amount"]
[1759270717568,0.099105,114160.0,114150.0,0.05066424]
[1759270717875,1.10587232,114160.0,114150.0,0.05066424]
[1759270718170,1.90595232,114160.0,114150.0,0.05066424]
[1759270718869,1.10587232,114160.0,114150.0,0.05066424]
[1759270719268,1.90595232,114160.0,114150.0,0.08492424]
[1759270719470,1.10587232,114160.0,114150.0,0.08492424]
[1759270719664,1.89171458,114160.0,114150.0,0.08492424]
[1759270720877,1.09163458,114160.0,114150.0,0.08492424]
[1759270721268,1.89171458,114160.0,114150.0,0.08492424]
[1759270721467,1.09163458,114160.0,114150.0,0.08492424]
[1759270721671,1.89171458,114160.0,114150.0,0.08492424]
[1759270722774,1.89175458,114160.0,114150.0,0.08492424]
[1759270723668,1.09163458,114160.0,114150.0,0.08492424]
[1759270723870,1.89175458,114160.0,114150.0,0.08492424]
[1759270724777,1.89175458,114160.0,114150.0,0.03426]
[1759270726071,1.09163458,114160.0,114150.0,0.03426]
[1759270726379,0.76899059,114160.0,114150.0,0.03426]
[1759270726876,1.24578726,114160.0,114150.0,0.03426]
[1759270727073,1.56911059,114160.0,114150.0,0.03426]
[1759270727274,1.56911059,114160.0,114150.0,0.0971645]
[1759270729577,0.08486726,114160.0,114150.0,0.4971645]
[1759270729779,0.0991013,114170.0,114160.0,0.1107428]
[1759270729977,0.8645413,114170.0,114160.0,1.09808952]
[1759270730181,0.8649413,114170.0,114160.0,1.0980882]
[1759270730683,0.8996213,114170.0,114160.0,1.03517448]
[1759270732685,0.0995013,114170.0,114160.0,1.43517448]
[1759270732992,0.0004,114170.0,114160.0,1.20787813]
[1759270733194,0.0990944,114180.0,114170.0,0.1237471]
[1759270733493,0.8999744,114180.0,114170.0,0.88655862]
[1759270735990,0.8999744,114180.0,114170.0,0.47566819]
[1759270736291,0.8999744,114180.0,114170.0,0.88655862]
[1759270737792,0.8999744,114180.0,114170.0,0.43819152]
[1759270737980,1.2607744,114180.0,114170.0,0.11486819]
[1759270738181,1.58409773,114180.0,114170.0,0.11486819]
[1759270738384,1.58409773,114180.0,114170.0,0.07596761]
[1759270738595,1.58409773,114180.0,114170.0,0.09913761]
[1759270740089,1.2607744,114180.0,114170.0,0.09913761]
[1759270740286,1.58409773,114180.0,114170.0,0.09913761]
[1759270741783,1.2607744,114180.0,114170.0,0.09913761]
[1759270741990,1.58409773,114180.0,114170.0,0.09913761]
[1759270743188,0.78401773,114180.0,114170.0,0.09913761]
[1759270743389,1.22321773,114180.0,114170.0,0.09913761]
[1759270746192,0.8998944,114180.0,114170.0,0.09913761]
[1759270746392,0.8998944,114180.0,114170.0,0.45993761]
[1759270747095,0.0998944,114180.0,114170.0,0.45993761]
[1759270747397,0.8998944,114180.0,114170.0,0.45993761]
[1759270751003,1.22321773,114180.0,114170.0,0.45993761]
[1759270751205,0.0998944,114180.0,114170.0,0.45993761]
[1759270751397,0.8998544,114180.0,114170.0,0.45993761]
[1759270751802,0.0998944,114180.0,114170.0,0.78326094]
[1759270752405,0.8998544,114180.0,114170.0,0.78326094]
[1759270752794,0.8998544,114180.0,114170.0,0.45993761]
[1759270753003,0.8998544,114180.0,114170.0,0.78326094]
[1759270753204,0.8998544,114180.0,114170.0,0.45993761]
[1759270753406,0.8998544,114180.0,114170.0,0.78326094]
[1759270753907,0.8998544,114180.0,114170.0,0.72030333]
[1759270754402,0.8998544,114180.0,114170.0,0.79899152]
[1759270754706,0.8998544,114180.0,114170.0,0.88655942]
[1759270755201,0.8998544,114180.0,114170.0,0.56323609]
[1759270755401,0.8998544,114180.0,114170.0,0.47566819]
[1759270758707,0.8998544,114180.0,114170.0,0.62625299]
[1759270758906,0.8998544,114180.0,114170.0,0.5475648]
[1759270759302,0.0998944,114180.0,114170.0,0.5475648]
[1759270759508,0.8998544,114180.0,114170.0,0.5475648]
[1759270759808,0.8998544,114180.0,114170.0,0.4599976]
[1759270761709,1.22317773,114180.0,114170.0,0.4599976]
[1759270761914,0.8998544,114180.0,114170.0,0.5475648]
[1759270762305,0.8998544,114180.0,114170.0,0.4599976]
[1759270762512,1.22317773,114180.0,114170.0,0.4599976]
[1759270764717,1.22317773,114180.0,114170.0,0.39698]
[1759270765114,1.22317773,114180.0,114170.0,0.03618]
[1759270765314,1.58397773,114180.0,114170.0,0.09169819]
[1759270765515,1.58397773,114180.0,114170.0,0.01301]
[1759270765915,0.087575,114160.0,114150.0,0.07868819]
[1759270766115,1.5696322,114160.0,114150.0,0.10067819]
[1759270766314,1.5696322,114160.0,114150.0,0.11392819]
[1759270766517,1.24630887,114160.0,114150.0,0.11392819]
[1759270766716,1.5696322,114160.0,114150.0,0.11392819]
[1759270770419,0.7689922,114160.0,114150.0,0.11392819]
[1759270770620,1.5698322,114160.0,114150.0,0.11392819]
[1759270771418,1.5698322,114160.0,114150.0,0.09193819]
[1759270771618,1.5698322,114160.0,114150.0,0.07868819]
[1759270772921,1.5698322,114160.0,114150.0,0.10067819]
[1759270773121,1.5698322,114160.0,114150.0,0.07868819]
[1759270773421,1.57885026,114160.0,114150.0,0.07868819]
[1759270775915,0.0875832,114150.0,114140.0,0.47432819]
[1759270776116,0.40819885,114150.0,114140.0,0.47432819]
[1759270778423,0.40819885,114150.0,114140.0,0.11352819]
[1759270778622,0.40819885,114150.0,114140.0,0.07868819]
[1759270780016,1.20859885,114150.0,114140.0,0.07868819]
[1759270780219,0.40819885,114150.0,114140.0,0.07868819]
[1759270780421,1.20859885,114150.0,114140.0,0.07868819]
[1759270780628,0.40819885,114150.0,114140.0,0.07868819]
[1759270780823,1.20867885,114150.0,114140.0,0.07868819]
[1759270781029,1.20879885,114150.0,114140.0,0.10067819]
[1759270781333,1.20875885,114150.0,114140.0,0.07868819]
[1759270782533,1.56955885,114150.0,114140.0,0.07868819]
[1759270783428,0.76899885,114150.0,114140.0,0.07868819]
[1759270783631,0.76899885,114150.0,114140.0,0.11392819]
[1759270783632,1.56931885,114150.0,114140.0,0.11392819]
[1759270784223,0.76899885,114150.0,114140.0,0.11392819]
[1759270784725,1.24619552,114150.0,114140.0,0.11392819]
[1759270785130,0.44567552,114150.0,114140.0,0.03524]
[1759270785431,0.44567552,114150.0,114140.0,0.11392819]
[1759270785621,1.24639552,114150.0,114140.0,0.11392819]
[1759270786017,1.23215712,114150.0,114140.0,0.11392819]
[1759270786219,1.55547954,114150.0,114140.0,0.43725061]
[1759270786622,0.75475954,114150.0,114140.0,0.43725061]
[1759270786826,1.55543954,114150.0,114140.0,0.43725061]
[1759270787027,1.55531954,114150.0,114140.0,0.43725061]
[1759270787226,1.55531954,114150.0,114140.0,0.11392819]
[1759270787527,1.55531954,114150.0,114140.0,0.43725061]
[1759270787929,1.55539954,114150.0,114140.0,0.43725061]
[1759270789230,1.55527954,114150.0,114140.0,0.43725061]
[1759270789431,1.55523954,114150.0,114140.0,0.43725061]
[1759270791827,1.55523954,114150.0,114140.0,0.35856242]
[1759270792232,1.55523954,114150.0,114140.0,0.43725061]
[1759270792633,0.43143712,114150.0,114140.0,0.43725061]
[1759270792834,0.87079712,114150.0,114140.0,1.24816383]
[1759270793130,0.87119712,114150.0,114140.0,1.16057303]
[1759270793329,0.87119712,114150.0,114140.0,0.92484141]
[1759270795732,0.07103712,114150.0,114140.0,1.24816383]
[1759270795932,0.87119712,114150.0,114140.0,1.24816383]
[1759270796638,0.87119712,114150.0,114140.0,0.60151899]
[1759270796834,0.87119712,114150.0,114140.0,1.24816383]
[1759270797040,0.07103712,114150.0,114140.0,1.24816383]
[1759270797233,0.87119712,114150.0,114140.0,1.24816383]
[1759270799442,0.87119712,114150.0,114140.0,1.16947564]
[1759270799840,0.87119712,114150.0,114140.0,1.08188484]
[1759270802636,0.87119712,114150.0,114140.0,1.19224482]
[1759270803143,0.87079712,114150.0,114140.0,1.55304482]
[1759270803346,0.07103712,114150.0,114140.0,1.55304482]
[1759270803646,0.85926712,114150.0,114140.0,1.64063562]
[1759270803851,0.83973524,114150.0,114140.0,1.64063562]
[1759270805245,0.83973524,114150.0,114140.0,1.53027564]
[1759270806446,0.83973524,114150.0,114140.0,1.6405964]
[1759270809543,0.0004,114150.0,114140.0,1.6405964]
[1759270809749,0.52064,114150.0,114140.0,1.2405964]
[1759270809943,0.6082231,114150.0,114140.0,1.2405964]
[1759270810145,0.6078231,114150.0,114140.0,1.2405964]
[1759270810346,0.6082231,114150.0,114140.0,1.2405964]
[1759270810546,0.52064,114150.0,114140.0,1.2405964]
[1759270811349,0.0004,114150.0,114140.0,1.2405964]
[1759270811648,0.0004,114150.0,114140.0,1.56391882]
[1759270816352,0.88494887,114160.0,114150.0,0.1220124]
[1759270816550,0.88494887,114160.0,114150.0,1.239778]
[1759270817957,0.08486887,114160.0,114150.0,1.239778]
[1759270818158,0.78945887,114160.0,114150.0,1.239778]
[1759270821460,0.80098887,114160.0,114150.0,0.91645558]
[1759270822050,0.80098887,114160.0,114150.0,0.80613482]
[1759270826864,0.80098887,114160.0,114150.0,0.88488481]
[1759270831061,0.80098887,114160.0,114150.0,0.56156239]
[1759270831361,0.80098887,114160.0,114150.0,1.20820723]
[1759270831768,0.80098887,114160.0,114150.0,0.88488481]
[1759270834969,0.80098887,114160.0,114150.0,1.20820723]
[1759270835862,0.80098887,114160.0,114150.0,0.88488481]
[1759270837959,0.80098887,114160.0,114150.0,0.80613482]
[1759270838864,0.80098887,114160.0,114150.0,0.80613502]
[1759270839865,0.08486887,114160.0,114150.0,0.80613502]
[1759270840063,0.88474887,114160.0,114150.0,0.80613502]
[1759270843061,0.08486887,114160.0,114150.0,0.80613502]
[1759270843273,0.88470887,114160.0,114150.0,0.80613502]
[1759270844974,0.88470887,114160.0,114150.0,0.4828126]
[1759270845173,0.88470887,114160.0,114150.0,0.80613502]
[1759270846769,0.0991124,114150.0,114140.0,0.14628076]
[1759270846968,0.0991204,114140.0,114130.0,0.13867326]
[1759270847170,1.54624524,114140.0,114130.0,0.05984]
[1759270847371,1.22292282,114140.0,114130.0,0.38316242]
[1759270847876,0.42244282,114140.0,114130.0,0.05984]
[1759270848077,0.0991204,114140.0,114130.0,0.38316242]
[1759270848377,0.9002804,114140.0,114130.0,0.05984]
[1759270849876,0.0991204,114140.0,114130.0,0.05984]
[1759270850070,0.9001204,114140.0,114130.0,0.47081757]
[1759270850271,0.9000804,114140.0,114130.0,0.47081757]
[1759270850468,0.0991204,114140.0,114130.0,0.47081757]
[1759270850663,0.9003604,114140.0,114130.0,0.47081757]
[1759270851068,0.9004804,114140.0,114130.0,0.47081757]
[1759270852178,0.9004804,114140.0,114130.0,0.83161757]
[1759270852976,0.9004404,114140.0,114130.0,0.83161757]
[1759270853174,0.9003204,114140.0,114130.0,0.83161757]
[1759270854078,0.0991204,114140.0,114130.0,0.83161757]
[1759270854278,0.9002004,114140.0,114130.0,0.83161757]
[1759270855179,0.9002004,114140.0,114130.0,0.91035893]
[1759270855379,0.9000804,114140.0,114130.0,0.91035893]
[1759270855980,0.9000804,114140.0,114130.0,0.83161757]
[1759270857374,0.0991204,114140.0,114130.0,0.83161757]
[1759270857575,0.01153,114140.0,114130.0,0.83161757]
[1759270857777,0.8998811,114140.0,114130.0,0.94193833]
[1759270858280,0.9002811,114140.0,114130.0,0.94193833]
[1759270858480,0.76206703,114140.0,114130.0,0.94193833]
[1759270858680,0.76206703,114140.0,114130.0,0.83161757]
[1759270859081,0.84965813,114140.0,114130.0,0.83161757]
[1759270859884,0.8885511,114140.0,114130.0,0.83161757]
[1759270861088,0.8885511,114140.0,114130.0,0.49936775]
[1759270861278,0.8885511,114140.0,114130.0,0.46194652]
[1759270861674,0.8885511,114140.0,114130.0,0.54954522]
[1759270862180,0.8885511,114140.0,114130.0,0.47081747]
[1759270862380,0.8885511,114140.0,114130.0,0.58103633]
[1759270862785,0.8885511,114140.0,114130.0,0.47081747]
[1759270863178,0.8885511,114140.0,114130.0,0.05984]
[1759270863383,0.8885511,114140.0,114130.0,0.46195556]
[1759270864281,0.8885511,114140.0,114130.0,0.38321877]
[1759270864681,0.8885511,114140.0,114130.0,0.46195556]
[1759270865485,0.8885511,114140.0,114130.0,0.47081747]
[1759270865788,0.8885511,114140.0,114130.0,0.54955426]
[1759270866089,0.8885511,114140.0,114130.0,0.46195556]
[1759270866284,1.97272987,114140.0,114130.0,0.04492689]
[1759270866481,1.97272987,114140.0,114110.0,0.12377994]
[1759270866482,0.0876064,114120.0,114110.0,0.12377994]
[1759270866677,0.77178517,114120.0,114110.0,0.01356108]
[1759270867080,0.43416404,114120.0,114110.0,0.03515108]
[1759270867388,1.23476404,114120.0,114110.0,0.03515108]
[1759270867587,1.55814281,114120.0,114110.0,0.03515108]
[1759270868285,2.28152158,114120.0,114110.0,0.01356108]
[1759270868479,1.95830281,114120.0,114110.0,0.01356108]
[1759270868683,1.15754281,114120.0,114110.0,0.01356108]
[1759270868889,1.95826281,114120.0,114110.0,0.01356108]
[1759270869290,1.95826281,114120.0,114110.0,0.01396108]
[1759270869591,1.95830281,114120.0,114110.0,0.01396108]
[1759270870084,1.95818281,114120.0,114110.0,0.01396108]
[1759270870290,1.63476404,114120.0,114110.0,0.01396108]
[1759270870490,1.95814281,114120.0,114110.0,0.01396108]
[1759270873193,1.95818281,114120.0,114110.0,0.01396108]
[1759270874987,1.15754281,114120.0,114110.0,0.01396108]
[1759270875389,1.95878281,114120.0,114110.0,0.01396108]
[1759270876099,1.15754281,114120.0,114110.0,0.01396108]
[1759270876296,1.95866281,114120.0,114110.0,0.01396108]
[1759270876496,1.15754281,114120.0,114110.0,0.01396108]
[1759270876699,1.95862281,114120.0,114110.0,0.01396108]
[1759270876898,1.63524404,114120.0,114110.0,0.03555108]
[1759270877093,1.95862281,114120.0,114110.0,0.03555108]
[1759270878201,1.15754281,114120.0,114110.0,0.03555108]
[1759270878398,1.95846281,114120.0,114110.0,0.03555108]
[1759270879499,1.15754281,114120.0,114110.0,0.01396108]
[1759270879805,1.95834281,114120.0,114110.0,0.01396108]
[1759270880506,1.15754281,114120.0,114110.0,0.01396108]
[1759270880702,1.95834281,114120.0,114110.0,0.01396108]
[1759270883506,1.95798281,114120.0,114110.0,0.01396108]
[1759270886706,1.95798281,114120.0,114110.0,0.00048108]
[1759270886909,2.31878281,114120.0,114110.0,0.00048108]
[1759270889116,1.51834281,114120.0,114110.0,0.01434108]
[1759270889316,4.09630281,114120.0,114110.0,0.01434108]
[1759270890422,4.09630281,114120.0,114110.0,0.00048108]
[1759270890812,4.09630281,114120.0,114110.0,8e-08]
[1759270890813,4.41968158,114120.0,114110.0,8e-08]
[1759270891018,1.51834281,114120.0,114110.0,0.03630008]
[1759270891208,4.09594281,114120.0,114110.0,0.0363]
[1759270891409,4.09590281,114120.0,114110.0,0.0367]
[1759270891912,4.09601112,114120.0,114110.0,0.01426]
[1759270892114,4.09601112,114120.0,114110.0,0.03926]
[1759270893113,1.51845112,114120.0,114110.0,0.03926]
[1759270893314,4.09605112,114120.0,114110.0,0.03926]
[1759270893917,1.51845112,114120.0,114110.0,0.03926]
[1759270894118,4.09605112,114120.0,114110.0,0.03926]
[1759270895018,3.77267235,114120.0,114110.0,0.03926]
[1759270895311,1.51845112,114120.0,114110.0,0.03926]
[1759270895517,4.09609112,114120.0,114110.0,0.03926]
[1759270898328,4.09617112,114120.0,114110.0,0.03926]
[1759270899619,3.69617112,114120.0,114110.0,0.03926]
[1759270901723,1.11845112,114120.0,114110.0,0.03926]
[1759270901923,3.69621112,114120.0,114110.0,0.03926]
[1759270903724,4.50719629,114120.0,114100.0,0.01398]
[1759270903917,4.50719629,114120.0,114090.0,0.03722]
[1759270903918,0.0876211,114100.0,114090.0,0.03722]
[1759270904117,1.57211987,114100.0,114090.0,0.01398]
[1759270904421,1.57211987,114100.0,114090.0,0.01438]
[1759270905615,1.58096517,114100.0,114090.0,0.01438]
[1759270905817,1.58096517,114100.0,114090.0,0.0004]
[1759270905818,1.56672033,114100.0,114090.0,0.0004]
[1759270906023,0.0876288,114090.0,114080.0,0.10686497]
[1759270906214,0.0876288,114090.0,114080.0,0.10766497]
[1759270906215,0.41100757,114090.0,114080.0,0.10766497]
[1759270906414,0.41100757,114090.0,114080.0,0.13010497]
[1759270906615,0.0876288,114090.0,114080.0,0.13010497]
[1759270906823,0.41100757,114090.0,114080.0,0.13010497]
[1759270907027,0.41100757,114090.0,114080.0,0.12930497]
[1759270907216,0.41100757,114090.0,114080.0,0.12970497]
[1759270907925,0.0876288,114090.0,114080.0,0.12970497]
[1759270908226,0.8895488,114090.0,114080.0,0.45308374]
[1759270909029,0.0876288,114090.0,114080.0,0.45308374]
[1759270909326,0.8895488,114090.0,114080.0,0.45308374]
[1759270910328,1.21319833,114090.0,114080.0,0.4533545]
[1759270910522,0.0876288,114090.0,114080.0,0.77700403]
[1759270910723,0.8894688,114090.0,114080.0,0.77700403]
[1759270912127,0.8894688,114090.0,114080.0,0.69844355]
[1759270913122,0.0876288,114090.0,114080.0,0.69844355]
[1759270913324,0.8890688,114090.0,114080.0,0.69844355]
[1759270914128,0.15705495,114090.0,114080.0,0.69844355]
[1759270914520,0.95837495,114090.0,114080.0,0.69844355]
[1759270916229,0.95837495,114090.0,114080.0,0.77700403]
[1759270916431,0.95837495,114090.0,114080.0,0.4533545]
[1759270917125,0.95837495,114090.0,114080.0,0.12970497]
[1759270917126,0.94412974,114090.0,114080.0,0.12970497]
[1759270917325,1.26777927,114090.0,114080.0,0.12970497]
[1759270917528,1.26777927,114090.0,114080.0,0.4533545]
[1759270919128,1.26777927,114090.0,114080.0,0.12970497]
[1759270919433,1.26777927,114090.0,114080.0,0.4533545]
[1759270919724,1.26777927,114090.0,114080.0,0.12970497]
[1759270919938,0.94412974,114090.0,114080.0,0.4533545]
[1759270920427,1.26777927,114090.0,114080.0,0.4533545]
[1759270921935,1.26777927,114090.0,114080.0,0.12970497]
[1759270922134,1.62857927,114090.0,114080.0,0.12970497]
[1759270922332,1.62857927,114090.0,114080.0,0.4533545]
[1759270923336,1.62857927,114090.0,114080.0,0.12970497]
[1759270923535,1.62857927,114090.0,114080.0,0.4533545]
[1759270923730,1.30492974,114090.0,114080.0,0.4533545]
[1759270923933,1.62857927,114090.0,114080.0,0.4533545]
[1759270924426,1.62913927,114090.0,114080.0,0.4533545]
[1759270924834,1.26833927,114090.0,114080.0,0.4533545]
[1759270926837,0.14280974,114090.0,114080.0,0.4533545]
[1759270927135,1.26821927,114090.0,114080.0,0.4533545]
[1759270931142,1.25397404,114090.0,114080.0,0.4533545]
[1759270932140,0.93032451,114090.0,114080.0,0.4533545]
[1759270932340,1.25397404,114090.0,114080.0,0.4533545]
[1759270935543,0.45221404,114090.0,114080.0,0.4533545]
[1759270935844,1.25349404,114090.0,114080.0,0.4533545]
[1759270937645,1.25333404,114090.0,114080.0,0.77700403]
[1759270939446,0.92968451,114090.0,114080.0,0.77700403]
[1759270939645,1.25333404,114090.0,114080.0,0.77700403]
[1759270939844,0.92968451,114090.0,114080.0,0.77700403]
[1759270940038,0.45221404,114090.0,114080.0,0.77700403]
[1759270940239,1.25349404,114090.0,114080.0,0.77700403]
[1759270940544,0.92984451,114090.0,114080.0,0.77700403]
[1759270941447,0.92984451,114090.0,114080.0,0.69844355]
[1759270941646,1.25349404,114090.0,114080.0,0.69844355]
[1759270942146,0.92984451,114090.0,114080.0,0.69844355]
[1759270942749,0.05913836,114090.0,114080.0,0.69844355]
[1759270942948,0.86053836,114090.0,114080.0,0.69844355]
[1759270943745,0.86053836,114090.0,114080.0,0.80866241]
[1759270943942,0.03919533,114090.0,114080.0,1.25709891]
[1759270944242,0.84059533,114090.0,114080.0,1.25709891]
[1759270944949,0.84059533,114090.0,114080.0,0.41194449]
[1759270945248,0.84059533,114090.0,114080.0,1.05924355]
[1759270948245,0.03919533,114090.0,114080.0,1.05924355]
[1759270948452,0.84051533,114090.0,114080.0,1.05924355]
[1759270948853,0.84051533,114090.0,114080.0,1.13812745]
[1759270950055,0.84051533,114090.0,114080.0,0.77732745]
[1759270950254,0.84051533,114090.0,114080.0,1.13812745]
[1759270952053,0.84051533,114090.0,114080.0,1.05924355]
[1759270953557,0.84051533,114090.0,114080.0,1.13812745]
[1759270953749,0.84051533,114090.0,114080.0,1.05924355]
[1759270954757,0.84051533,114090.0,114080.0,1.14688015]
[1759270958360,0.84051533,114090.0,114080.0,1.05924355]
[1759270961159,0.84051533,114090.0,114080.0,1.13812745]
[1759270961554,0.76284486,114090.0,114080.0,0.45440839]
[1759270961760,1.52420486,114090.0,114080.0,0.02789449]
[1759270962160,1.52420486,114090.0,114080.0,0.35114402]
[1759270962362,0.72364486,114090.0,114080.0,0.37393402]
[1759270962557,1.20055533,114090.0,114080.0,0.37393402]
[1759270962864,1.27210527,114090.0,114080.0,0.37433402]
[1759270963060,1.5957548,114090.0,114080.0,0.37433402]
[1759270968567,1.5957548,114090.0,114080.0,0.02789449]
[1759270972368,1.59580903,114090.0,114080.0,0.02789449]
[1759270976376,1.59580903,114090.0,114080.0,0.04902449]
[1759270980174,2.68031279,114090.0,114080.0,0.01472449]
[1759270980479,4.45799279,114090.0,114080.0,0.02837449]
[1759270980780,1.47975279,114090.0,114080.0,0.02837449]
[1759270980978,3.73428903,114090.0,114080.0,0.02837449]
[1759270981278,1.87984672,114090.0,114080.0,9e-08]
[1759270981672,0.0876365,114080.0,114070.0,0.01365]
[1759270981873,0.77214026,114080.0,114070.0,0.01365]
[1759270984778,0.087644,114070.0,114060.0,0.01455859]
[1759270984975,1.57270776,114070.0,114060.0,0.01455859]
[1759270986182,1.77940776,114070.0,114060.0,0.01455859]
[1759270986875,1.57270776,114070.0,114060.0,0.01455859]
[1759270987071,1.97270776,114070.0,114060.0,0.01375859]
[1759270987271,1.17214776,114070.0,114060.0,0.01415859]
[1759270987483,3.75058776,114070.0,114060.0,0.01415859]
[1759270987980,3.75922812,114070.0,114060.0,0.01415859]
[1759270988178,4.06868267,114070.0,114060.0,0.01415859]
[1759270988381,3.74497891,114070.0,114060.0,0.01415859]
[1759270988577,3.74497891,114070.0,114060.0,0.07888399]
[1759270988578,4.06868267,114070.0,114060.0,0.07888399]
[1759270989876,0.0876517,114060.0,114050.0,0.12487886]
[1759270990071,1.09585922,114060.0,114050.0,0.01386]
[1759270990278,1.09585922,114060.0,114050.0,0.01426]
[1759270991585,1.09585922,114060.0,114050.0,0.01386]
[1759270991784,1.09585922,114060.0,114050.0,0.01426]
[1759270992888,1.89655965,114060.0,114050.0,0.01426]
[1759270993090,1.89655965,114060.0,114050.0,0.01386]
[1759270993289,1.89655965,114060.0,114050.0,0.01426]
[1759270993491,2.29655965,114060.0,114050.0,1e-07]
[1759270993990,0.0876593,114050.0,114040.0,0.01365]
[1759270994190,0.77216306,114050.0,114040.0,0.01365]
[1759270994393,0.77216306,114050.0,114040.0,0.12386886]
[1759270994893,3.42060211,114050.0,114040.0,0.01405]
[1759270995592,3.42064211,114050.0,114040.0,0.01405]
[1759270995794,0.84192211,114050.0,114040.0,0.01405]
[1759270996094,3.42064211,114050.0,114040.0,0.01405]
[1759270996293,3.42064211,114050.0,114040.0,0.0004]
[1759270996900,3.42064211,114050.0,114040.0,0.01405]
[1759270997395,0.84192211,114050.0,114040.0,0.01405]
[1759270997598,3.42068211,114050.0,114040.0,0.01405]
[1759270998395,0.82767106,114050.0,114040.0,0.01405]
[1759270998591,3.40647106,114050.0,114040.0,0.01405]
[1759270998783,0.82767106,114050.0,114040.0,0.09278529]
[1759270998988,3.40651106,114050.0,114040.0,0.09278529]
[1759270999387,0.82767106,114050.0,114040.0,0.09278529]
[1759270999588,3.40651106,114050.0,114040.0,0.09278529]
[1759270999791,2.2822073,114050.0,114040.0,0.11391529]
[1759270999995,0.82767106,114050.0,114040.0,0.11391529]
[1759271000183,1.62831106,114050.0,114040.0,0.03518]
[1759271000988,1.62831106,114050.0,114040.0,0.01405]
[1759271001184,1.83501106,114050.0,114040.0,0.01405]
[1759271001388,1.83501106,114050.0,114040.0,0.03629]
[1759271002095,1.5113073,114050.0,114040.0,0.03629]
[1759271002294,1.83501106,114050.0,114040.0,0.01405]
[1759271004792,1.83501106,114050.0,114040.0,0.03629]
[1759271005192,1.83501106,114050.0,114040.0,0.01405]
[1759271006799,2.23501106,114050.0,114040.0,0.0004]
[1759271007489,2.23501106,114050.0,114040.0,0.01375]
[1759271007696,2.23501106,114050.0,114040.0,0.09248529]
[1759271008289,2.22075989,114050.0,114040.0,0.09248529]
[1759271009102,2.22075989,114050.0,114040.0,0.01375]
[1759271010102,2.22075989,114050.0,114040.0,0.09248529]
[1759271010491,1.82075989,114050.0,114040.0,0.11472529]
[1759271011101,1.82075989,114050.0,114040.0,0.09248529]
[1759271012203,1.82075989,114050.0,114040.0,0.12396886]
[1759271013003,1.82075989,114050.0,114040.0,0.01375]
[1759271013298,1.82075989,114050.0,114040.0,0.12396886]
[1759271013703,1.82075989,114050.0,114040.0,0.01375]
[1759271015108,1.82075989,114050.0,114040.0,0.03599]
[1759271015299,1.82075989,114050.0,114040.0,0.14620886]
[1759271016111,1.82075989,114050.0,114040.0,0.12396886]
[1759271017006,1.82075989,114050.0,114040.0,0.01375]
[1759271017411,1.82075989,114050.0,114040.0,0.03599]
[1759271018117,1.82075989,114050.0,114040.0,0.01375]
[1759271018418,1.82075989,114050.0,114040.0,0.03599]
[1759271019417,1.82075989,114050.0,114040.0,0.01375]
[1759271020218,1.02011989,114050.0,114040.0,0.01375]
[1759271020415,1.82079989,114050.0,114040.0,0.03599]
[1759271020615,1.82079989,114050.0,114040.0,0.01375]
[1759271021715,1.82079989,114050.0,114040.0,0.03599]
[1759271022122,1.82079989,114050.0,114040.0,0.01375]
[1759271022518,1.82079989,114050.0,114040.0,0.03599]
[1759271023023,1.82079989,114050.0,114040.0,0.01375]
[1759271024213,0.81341989,114050.0,114040.0,0.03599]
[1759271024518,0.05915708,114050.0,114040.0,1.12049376]
[1759271024724,0.85979708,114050.0,114040.0,1.12049376]
[1759271024925,0.05915708,114050.0,114040.0,1.12049376]
[1759271025317,0.41146209,114060.0,114050.0,0.03559]
[1759271025624,1.21210209,114060.0,114050.0,0.03559]
[1759271029626,0.08775833,114060.0,114050.0,0.03559]
[1759271029827,1.21202209,114060.0,114050.0,0.4840493]
[1759271030222,1.21202209,114060.0,114050.0,0.39639]
[1759271030729,1.21202209,114060.0,114050.0,0.4840493]
[1759271030929,1.21202209,114060.0,114050.0,0.39639]
[1759271031527,1.21202209,114060.0,114050.0,0.40501576]
[1759271033028,1.21202209,114060.0,114050.0,0.49267456]
[1759271033231,0.88831833,114060.0,114050.0,0.49267456]
[1759271033429,1.21202209,114060.0,114050.0,0.49267456]
[1759271033625,1.21202209,114060.0,114050.0,0.40501576]
[1759271034234,1.21214587,114060.0,114050.0,0.7288433]
[1759271034431,1.53597341,114060.0,114050.0,0.39639]
[1759271037233,0.88831833,114060.0,114050.0,0.39639]
[1759271037532,1.53597341,114060.0,114050.0,0.39639]
[1759271037928,0.88831833,114060.0,114050.0,0.39639]
[1759271038129,1.53597341,114060.0,114050.0,0.39639]
[1759271038334,0.88831833,114060.0,114050.0,0.39639]
[1759271038529,1.53597341,114060.0,114050.0,0.39639]
[1759271038834,0.88831833,114060.0,114050.0,0.39639]
[1759271039037,1.53597341,114060.0,114050.0,0.39639]
[1759271040237,0.73541341,114060.0,114050.0,0.39639]
[1759271040539,1.53585341,114060.0,114050.0,0.39639]
[1759271041238,0.41158587,114060.0,114050.0,0.80787714]
[1759271041436,1.21202587,114060.0,114050.0,0.80787714]
[1759271041736,1.21202587,114060.0,114050.0,1.20787714]
[1759271043133,1.21202587,114060.0,114050.0,0.79639]
[1759271043433,0.88819833,114060.0,114050.0,0.79639]
[1759271043634,1.21202587,114060.0,114050.0,0.79639]
[1759271043836,1.21202587,114060.0,114050.0,1.12021754]
[1759271046742,0.41158587,114060.0,114050.0,1.20787714]
[1759271046942,1.21194587,114060.0,114050.0,1.20787714]
[1759271048336,0.88811833,114060.0,114050.0,1.20787714]
[1759271048537,0.08775833,114060.0,114050.0,1.20787714]
[1759271048743,0.87386814,114060.0,114050.0,1.20787714]
[1759271048946,0.87386814,114060.0,114050.0,1.27092138]
[1759271049644,0.87394857,114060.0,114050.0,1.27092138]
[1759271049839,0.87390857,114060.0,114050.0,1.27092138]
[1759271052037,1.19773611,114060.0,114050.0,1.27092138]
[1759271052842,0.87390857,114060.0,114050.0,1.27092138]
[1759271053036,0.87390857,114060.0,114050.0,1.20787714]
[1759271053237,0.87390857,114060.0,114050.0,1.318096]
[1759271053541,1.19773611,114060.0,114050.0,1.20787714]
[1759271054746,0.87390857,114060.0,114050.0,1.20787714]
[1759271055045,1.19773611,114060.0,114050.0,0.79639]
[1759271055246,1.19773611,114060.0,114050.0,1.19902478]
[1759271055948,1.19773611,114060.0,114050.0,1.28668378]
[1759271058642,1.18348729,114060.0,114050.0,1.28668378]
[1759271060152,0.38316729,114060.0,114050.0,1.28668378]
[1759271060358,1.18340729,114060.0,114050.0,1.28668378]
[1759271066859,1.18340729,114060.0,114050.0,0.96285624]
[1759271067053,1.18340729,114060.0,114050.0,1.28668378]
[1759271068059,0.38316729,114060.0,114050.0,1.28668378]
[1759271068259,1.18332729,114060.0,114050.0,1.28668378]
[1759271068758,1.16907827,114060.0,114050.0,1.28668378]
[1759271072066,1.16907827,114060.0,114050.0,0.96285624]
[1759271072363,1.16907827,114060.0,114050.0,1.27497378]
[1759271073158,1.16907827,114060.0,114050.0,1.18731478]
[1759271073359,1.16907827,114060.0,114050.0,1.27497468]